fUSD/lending_fUSD_20250414
["ID","MTS","AMOUNT","RATE_DAILY","PERIOD"]
[357947386,1744609835016,-523.1149443,0.00019178,2]
[357947387,1744609835029,-506.33306372,0.00019178,2]
[357947388,1744609835041,-500.0,0.00019178,2]
[357947389,1744609835053,-500.0,0.00019178,2]
[357947390,1744609835064,-500.0,0.00019178,2]
[357947391,1744609835075,-507.8672443,0.00019178,2]
[357947392,1744609835087,-500.0,0.00019178,2]
[357947393,1744609835099,-500.0,0.00019178,2]
[357947394,1744609835111,-500.0,0.00019178,2]
[357947395,1744609835126,-500.0,0.00019178,2]
[357947396,1744609835137,-500.0,0.00019178,2]
[357947397,1744609835149,-500.0,0.00019178,2]
[357947398,1744609835160,-500.0,0.00019178,2]
[357947399,1744609835172,-500.0,0.00019178,2]
[357947400,1744609835185,-300.0,0.00019178,2]
[357947401,1744609835197,-500.0,0.00019178,2]
[357947402,1744609835208,-500.0,0.00019178,2]
[357947403,1744609835220,-500.0,0.00019178,2]
[357947404,1744609835231,-500.0,0.00019178,2]
[357947405,1744609835243,-500.0,0.00019178,2]
[357947406,1744609835254,-500.0,0.00019178,2]
[357947407,1744609835265,-500.0,0.00019178,2]
[357947408,1744609835277,-500.0,0.00019178,2]
[357947409,1744609835289,-500.0,0.00019178,2]
[357947410,1744609835300,-500.0,0.00019178,2]
[357947411,1744609835311,-500.0,0.00019178,2]
[357947412,1744609835323,-500.0,0.00019178,2]
[357947413,1744609835334,-500.0,0.00019178,2]
[357947414,1744609835346,-500.0,0.00019178,2]
[357947415,1744609835358,-538.01862258,0.00019178,2]
[357947416,1744609835370,-500.0,0.00019178,2]
[357947417,1744609835381,-500.0,0.00019178,2]
[357947418,1744609835393,-502.01159203,0.00019178,2]
[357947419,1744609835405,-500.0,0.00019178,2]
[357947420,1744609835417,-500.0,0.00019178,2]
[357947421,1744609835428,-500.00386553,0.00019178,2]
[357947422,1744609835440,-500.0,0.00019178,2]
[357947423,1744609835451,-509.59273958,0.00019178,2]
[357947424,1744609835462,-500.0,0.00019178,2]
[357947425,1744609835474,-571.48,0.00019178,2]
[357947426,1744609835486,-500.0,0.00019178,2]
[357947427,1744609835497,-500.0,0.00019178,2]
[357947428,1744609835509,-523.50401636,0.00019178,2]
[357947429,1744609835520,-500.0,0.00019178,2]
[357947430,1744609835532,-500.0,0.00019178,2]
[357947431,1744609835543,-500.0,0.00019178,2]
[357947432,1744609835555,-500.0,0.00019178,2]
[357947433,1744609835566,-640.32,0.00019178,2]
[357947434,1744609835577,-500.0,0.00019178,2]
[357947435,1744609835588,-500.0,0.00019178,2]
[357947436,1744609835600,-518.35245013,0.00019178,2]
[357947437,1744609835611,-500.0,0.00019178,2]
[357947438,1744609835623,-500.0,0.00019178,2]
[357947439,1744609835635,-500.0,0.00019178,2]
[357947440,1744609835647,-500.0,0.00019178,2]
[357947441,1744609835658,-500.0,0.00019178,2]
[357947442,1744609835669,-500.0,0.00019178,2]
[357947443,1744609835680,-500.0,0.00019178,2]
[357947444,1744609835691,-500.0,0.00019178,2]
[357947445,1744609835703,-500.0,0.00019178,2]
[357947446,1744609835714,-500.0,0.00019178,2]
[357947447,1744609835725,-500.0,0.00019178,2]
[357947448,1744609835736,-500.0,0.00019178,2]
[357947449,1744609835747,-500.0,0.00019178,2]
[357947450,1744609835758,-500.0,0.00019178,2]
[357947451,1744609835769,-500.0,0.00019178,2]
[357947452,1744609835781,-500.0,0.00019178,2]
[357947453,1744609835793,-500.0,0.00019178,2]
[357947454,1744609835805,-500.0,0.00019178,2]
[357947455,1744609835816,-500.0,0.00019178,2]
[357947456,1744609835829,-500.0,0.00019178,2]
[357947457,1744609835842,-500.0,0.00019178,2]
[357947458,1744609835855,-500.0,0.00019178,2]
[357947459,1744609835867,-501.98519982,0.00019178,2]
[357947460,1744609835879,-500.0,0.00019178,2]
[357947461,1744609836087,-500.0,0.00019178,2]
[357947462,1744609836113,-544.17084884,0.00019178,2]
[357947463,1744609836126,-500.0,0.00019178,2]
[357947464,1744609836135,-500.0,0.00019178,2]
[357947465,1744609836144,-500.0,0.00019178,2]
[357947466,1744609836154,-506.5832733,0.00019178,2]
[357947467,1744609836163,-500.0,0.00019178,2]
[357947468,1744609836172,-500.0,0.00019178,2]
[357947469,1744609836183,-509.21545854,0.00019178,2]
[357947470,1744609836193,-500.0,0.00019178,2]
[357947471,1744609836203,-500.0,0.00019178,2]
[357947472,1744609836213,-500.0,0.00019178,2]
[357947473,1744609836222,-500.0,0.00019178,2]
[357947474,1744609836232,-500.0,0.00019178,2]
[357947475,1744609836241,-512.37418902,0.00019178,2]
[357947476,1744609836250,-527.57647931,0.00019178,2]
[357947477,1744609836259,-622.55865597,0.00019178,2]
[357947478,1744609836269,-502.13172789,0.00019178,2]
[357947479,1744609836279,-500.0,0.00019178,2]
[357947480,1744609836289,-500.0,0.00019178,2]
[357947481,1744609836298,-535.17,0.00019178,2]
[357947482,1744609836307,-582.14,0.00019178,2]
[357947483,1744609836316,-513.2023721,0.00019178,2]
[357947484,1744609836326,-500.0,0.00019178,2]
[357947485,1744609836335,-500.0,0.00019178,2]
[357947486,1744609836344,-502.22480439,0.00019178,2]
[357947487,1744609836353,-502.82274918,0.00019178,2]
[357947488,1744609836363,-500.0,0.00019178,2]
[357947489,1744609836374,-500.0,0.00019178,2]
[357947490,1744609836384,-500.0,0.00019178,2]
[357947491,1744609836395,-505.73363482,0.00019178,2]
[357947492,1744609836404,-500.0,0.00019178,2]
[357947493,1744609836414,-156.72358664,0.00019178,2]
[357947494,1744609836423,-563.93373086,0.00019178,2]
[357947495,1744609836433,-631.15738856,0.00019178,2]
[357947496,1744609836442,-500.0,0.00019178,2]
[357947497,1744609836451,-504.43990546,0.00019178,2]
[357947498,1744609836460,-568.04,0.00019178,2]
[357947499,1744609836470,-544.99803642,0.00019178,2]
[357947500,1744609836480,-501.59355952,0.00019178,2]
[357947501,1744609836489,-500.0,0.00019178,2]
[357947502,1744609836500,-500.0,0.00019178,2]
[357947503,1744609836509,-514.22097135,0.00019178,2]
[357947504,1744609836519,-500.0,0.00019178,2]
[357947505,1744609836528,-544.23370561,0.00019178,2]
[357947506,1744609836537,-192.32657973,0.00019178,2]
[357947507,1744609836546,-500.0,0.00019178,2]
[357947508,1744609836555,-376.07916585,0.00019178,2]
[357947509,1744609836564,-500.0,0.00019178,2]
[357947510,1744609836573,-500.0,0.00019178,2]
[357947511,1744609836583,-346.04157014,0.00019178,2]
[357947512,1744609836592,-500.0,0.00019178,2]
[357947513,1744609836601,-797.49,0.00019178,2]
[357947514,1744609836611,-500.0,0.00019178,2]
[357947515,1744609836622,-505.94270865,0.00019178,2]
[357947516,1744609836631,-500.0,0.00019178,2]
[357947517,1744609836640,-505.41230038,0.00019178,2]
[357947518,1744609836650,-506.45788048,0.00019178,2]
[357947519,1744609836659,-500.0,0.00019178,2]
[357947520,1744609836669,-503.60262791,0.00019178,2]
[357947521,1744609836677,-518.0266153,0.00019178,2]
[357947522,1744609836686,-500.0,0.00019178,2]
[357947523,1744609836696,-503.59106847,0.00019178,2]
[357947524,1744609836706,-500.0,0.00019178,2]
[357947525,1744609836716,-500.0,0.00019178,2]
[357947526,1744609836726,-500.0,0.00019178,2]
[357947527,1744609836735,-518.39833755,0.00019178,2]
[357947528,1744609836744,-500.0,0.00019178,2]
[357947529,1744609836755,-521.86469215,0.00019178,2]
[357947530,1744609836765,-500.0,0.00019178,2]
[357947531,1744609836776,-502.95819699,0.00019178,2]
[357947532,1744609836785,-501.56806034,0.00019178,2]
[357947533,1744609836794,-500.0,0.00019178,2]
[357947534,1744609836803,-500.0,0.00019178,2]
[357947535,1744609836812,-500.0,0.00019178,2]
[357947536,1744609836822,-231.66429803,0.00019178,2]
[357947537,1744609836831,-500.0,0.00019178,2]
[357947538,1744609836846,-500.0,0.00019178,2]
[357947539,1744609836855,-500.0,0.00019178,2]
[357947540,1744609836864,-500.0,0.00019178,2]
[357947541,1744609836874,-500.0,0.00019178,2]
[357947542,1744609836884,-515.39828705,0.00019178,2]
[357947543,1744609836894,-500.0,0.00019178,2]
[357947544,1744609836903,-500.0,0.00019178,2]
[357947545,1744609836912,-500.0,0.00019178,2]
[357947546,1744609836923,-500.0,0.00019178,2]
[357947547,1744609836932,-500.0,0.00019178,2]
[357947548,1744609836941,-527.02834412,0.00019178,2]
[357947549,1744609836950,-500.0,0.00019178,2]
[357947550,1744609836959,-500.0,0.00019178,2]
[357947551,1744609836969,-500.0,0.00019178,2]
[357947552,1744609836978,-500.0,0.00019178,2]
[357947553,1744609836987,-500.0,0.00019178,2]
[357947554,1744609836996,-500.0,0.00019178,2]
[357947555,1744609837005,-500.0,0.00019178,2]
[357947556,1744609837014,-537.78829036,0.00019178,2]
[357947557,1744609837023,-500.0,0.00019178,2]
[357947558,1744609837033,-500.0,0.00019178,2]
[357947559,1744609837042,-501.06933406,0.00019178,2]
[357947560,1744609837051,-500.0,0.00019178,2]
[357947561,1744609837061,-502.42539307,0.00019178,2]
[357947562,1744609837070,-500.0,0.00019178,2]
[357947563,1744609837079,-500.0,0.00019178,2]
[357947564,1744609837088,-500.0,0.00019178,2]
[357947565,1744609837098,-500.0,0.00019178,2]
[357947566,1744609837107,-500.0,0.00019178,2]
[357947567,1744609837116,-500.0,0.00019178,2]
[357947568,1744609837126,-500.0,0.00019178,2]
[357947569,1744609837135,-500.0,0.00019178,2]
[357947570,1744609837145,-500.0,0.00019178,2]
[357947571,1744609837154,-500.0,0.00019178,2]
[357947572,1744609837163,-500.0,0.00019178,2]
[357947573,1744609837172,-500.0,0.00019178,2]
[357947574,1744609837182,-500.0,0.00019178,2]
[357947575,1744609837191,-500.0,0.00019178,2]
[357947576,1744609837200,-500.0,0.00019178,2]
[357947577,1744609837210,-1693.21,0.00019178,2]
[357947578,1744609837219,-500.0,0.00019178,2]
[357947579,1744609837228,-500.0,0.00019178,2]
[357947580,1744609837237,-500.0,0.00019178,2]
[357947581,1744609837246,-500.0,0.00019178,2]
[357947582,1744609837255,-500.0,0.00019178,2]
[357947583,1744609837264,-266.00464962,0.00019178,2]
[357947584,1744609837274,-500.0,0.00019178,2]
[357947585,1744609837283,-500.0,0.00019178,2]
[357947586,1744609837293,-500.0,0.00019178,2]
[357947587,1744609837303,-500.0,0.00019178,2]
[357947588,1744609837313,-500.0,0.00019178,2]
[357947589,1744609837323,-211.31262192,0.00019178,2]
[357947590,1744609837333,-500.0,0.00019178,2]
[357947591,1744609837343,-500.0,0.00019178,2]
[357947592,1744609837353,-509.28,0.00019178,2]
[357947593,1744609837362,-500.0,0.00019178,2]
[357947594,1744609837373,-379.37695252,0.00019178,2]
[357947595,1744609837383,-500.0,0.00019178,2]
[357947596,1744609837392,-500.0,0.00019178,2]
[357947597,1744609837401,-500.0,0.00019178,2]
[357947598,1744609837410,-500.0,0.00019178,2]
[357947599,1744609837419,-500.0,0.00019178,2]
[357947600,1744609837429,-500.0,0.00019178,2]
[357947601,1744609837439,-635.83,0.00019178,2]
[357947602,1744609837448,-500.0,0.00019178,2]
[357947603,1744609837457,-500.0,0.00019178,2]
[357947604,1744609837466,-500.0,0.00019178,2]
[357947605,1744609837476,-500.0,0.00019178,2]
[357947606,1744609837485,-500.0,0.00019178,2]
[357947607,1744609837494,-500.0,0.00019178,2]
[357947608,1744609837503,-746.1,0.00019178,2]
[357947609,1744609837512,-513.38125148,0.00019178,2]
[357947610,1744609837521,-319.75781207,0.00019178,2]
[357947611,1744609837530,-575.96796043,0.00019178,2]
[357947612,1744609837539,-500.0,0.00019178,2]
[357947613,1744609837548,-500.0,0.00019178,2]
[357947614,1744609837558,-367.64,0.00019178,2]
[357947615,1744609837567,-500.0,0.00019178,2]
[357947616,1744609837577,-532.21310496,0.00019178,2]
[357947617,1744609837586,-500.0,0.00019178,2]
[357947618,1744609837595,-500.0,0.00019178,2]
[357947619,1744609837604,-500.0,0.00019178,2]
[357947620,1744609837614,-500.0,0.00019178,2]
[357947621,1744609837624,-500.0,0.00019178,2]
[357947622,1744609837633,-500.0,0.00019178,2]
[357947623,1744609837642,-500.0,0.00019178,2]
[357947624,1744609837651,-629.03,0.00019178,2]
[357947625,1744609837660,-192.14058147,0.00019178,2]
[357947626,1744609837670,-538.00552462,0.00019178,2]
[357947627,1744609837679,-500.0,0.00019178,2]
[357947628,1744609837688,-500.0,0.00019178,2]
[357947629,1744609837697,-500.0,0.00019178,2]
[357947630,1744609837707,-500.0,0.00019178,2]
[357947631,1744609837716,-500.0,0.00019178,2]
[357947632,1744609837725,-500.0,0.00019178,2]
[357947633,1744609837735,-500.0,0.00019178,2]
[357947634,1744609837744,-500.0,0.00019178,2]
[357947635,1744609837754,-500.0,0.00019178,2]
[357947636,1744609837763,-500.0,0.00019178,2]
[357947637,1744609837772,-500.0,0.00019178,2]
[357947638,1744609837781,-500.0,0.00019178,2]
[357947639,1744609837790,-452.99611145,0.00019178,2]
[357947640,1744609837800,-500.0,0.00019178,2]
[357947641,1744609837809,-500.0,0.00019178,2]
[357947642,1744609837819,-500.0,0.00019178,2]
[357947643,1744609837829,-500.0,0.00019178,2]
[357947644,1744609837839,-500.0,0.00019178,2]
[357947645,1744609837852,-500.0,0.00019178,2]
[357947646,1744609837862,-422.44685556,0.00019178,2]
[357947647,1744609837871,-500.0,0.00019178,2]
[357947648,1744609837882,-500.0,0.00019178,2]
[357947649,1744609837891,-500.0,0.00019178,2]
[357947650,1744609837901,-517.1030279,0.00019178,2]
[357947651,1744609837910,-500.0,0.00019178,2]
[357947652,1744609837921,-500.0,0.00019178,2]
[357947653,1744609837931,-500.0,0.00019178,2]
[357947655,1744609837940,-500.0,0.00019178,2]
[357947657,1744609837950,-526.34927083,0.00019178,2]
[357947658,1744609837959,-500.0,0.00019178,2]
[357947659,1744609837968,-500.0,0.00019178,2]
[357947660,1744609837977,-500.0,0.00019178,2]
[357947661,1744609837987,-477.1000145,0.00019178,2]
[357947662,1744609837996,-500.0,0.00019178,2]
[357947663,1744609838006,-500.0,0.00019178,2]
[357947664,1744609838016,-500.0,0.00019178,2]
[357947665,1744609838025,-500.0,0.00019178,2]
[357947666,1744609838034,-500.0,0.00019178,2]
[357947667,1744609838043,-500.0,0.00019178,2]
[357947668,1744609838052,-500.0,0.00019178,2]
[357947669,1744609838062,-2000.0,0.00019178,2]
[357947670,1744609838071,-500.0,0.00019178,2]
[357947671,1744609838080,-500.0,0.00019178,2]
[357947673,1744609838089,-500.0,0.00019178,2]
[357947675,1744609838098,-471.77869149,0.00019178,2]
[357947677,1744609838107,-500.0,0.00019178,2]
[357947678,1744609838117,-500.0,0.00019178,2]
[357947679,1744609838128,-500.0,0.00019178,2]
[357947680,1744609838137,-500.0,0.00019178,2]
[357947681,1744609838146,-500.0,0.00019178,2]
[357947682,1744609838155,-327.73801163,0.00019178,2]
[357947683,1744609838164,-500.0,0.00019178,2]
[357947684,1744609838173,-644.09684097,0.00019178,2]
[357947685,1744609838184,-410.85192498,0.00019178,2]
[357947686,1744609838194,-500.0,0.00019178,2]
[357947687,1744609838203,-500.0,0.00019178,2]
[357947688,1744609838213,-500.0,0.00019178,2]
[357947689,1744609838223,-500.0,0.00019178,2]
[357947690,1744609838233,-500.0,0.00019178,2]
[357947691,1744609838242,-500.0,0.00019178,2]
[357947692,1744609838252,-506.81160882,0.00019178,2]
[357947693,1744609838262,-452.80876012,0.00019178,2]
[357947694,1744609838319,-99.86981795,0.00019178,2]
[357947695,1744609838328,-500.0,0.00019178,2]
[357947696,1744609838338,-528.16744699,0.00019178,2]
[357947697,1744609838347,-500.0,0.00019178,2]
[357947698,1744609838356,-633.89,0.00019178,2]
[357947699,1744609838366,-500.0,0.00019178,2]
[357947700,1744609838376,-500.0,0.00019178,2]
[357947701,1744609838386,-500.5717482,0.00019178,2]
[357947702,1744609838395,-500.30008613,0.00019178,2]
[357947703,1744609838405,-500.0,0.00019178,2]
[357947704,1744609838414,-574.48658582,0.00019178,2]
[357947705,1744609838424,-500.0,0.00019178,2]
[357947706,1744609838433,-500.0,0.00019178,2]
[357947707,1744609838443,-27.0288113,0.00019178,2]
[357947708,1744609838463,-472.9711887,0.00019178,2]
[357947709,1744609838473,-606.08,0.00019178,2]
[357947710,1744609838484,-269.95733336,0.00019178,2]
[357947711,1744609838495,-260.13694621,0.00019178,2]
[357947712,1744609838505,-157.02316299,0.00019178,2]
[357947713,1744609838694,-383.93683701,0.00019178,2]
[357947714,1744609838703,-186.52638801,0.00019178,2]
[357947715,1744609838714,-385.2621208,0.00019178,2]
[357947716,1744609838726,-27.37793746,0.00019178,2]
[357947717,1744609838735,-500.0,0.00019178,2]
[357947718,1744609838745,-594.82464534,0.00019178,2]
[357947719,1744609838754,-500.0,0.00019178,2]
[357947720,1744609838763,-500.0,0.00019178,2]
[357947721,1744609838772,-500.0,0.00019178,2]
[357947722,1744609838781,-500.0,0.00019178,2]
[357947723,1744609838790,-500.0,0.00019178,2]
[357947724,1744609838800,-490.0,0.00019178,2]
[357947725,1744609838809,-529.72492614,0.00019178,2]
[357947726,1744609838818,-500.0,0.00019178,2]
[357947727,1744609838828,-500.0,0.00019178,2]
[357947728,1744609838839,-500.0,0.00019178,2]
[357947729,1744609838850,-613.92966449,0.00019178,2]
[357947730,1744609838860,-500.0,0.00019178,2]
[357947731,1744609838869,-284.64128736,0.00019178,2]
[357947732,1744609838880,-598.46271085,0.00019178,2]
[357947733,1744609838889,-554.42723078,0.00019178,2]
[357947734,1744609838898,-372.02589541,0.00019178,2]
[357947735,1744609838908,-500.0,0.00019178,2]
[357947736,1744609838917,-582.62499382,0.00019178,2]
[357947737,1744609838927,-500.0,0.00019178,2]
[357947738,1744609838936,-616.9,0.00019178,2]
[357947739,1744609838945,-356.6273608,0.00019178,2]
[357947740,1744609838955,-793.91,0.00019178,2]
[357947741,1744609838965,-500.0,0.00019178,2]
[357947742,1744609838975,-519.8675029,0.00019178,2]
[357947743,1744609838984,-500.0,0.00019178,2]
[357947744,1744609838994,-500.0,0.00019178,2]
[357947745,1744609839120,-500.0,0.00019178,2]
[357947746,1744609839154,-500.0,0.00019178,2]
[357947747,1744609839163,-500.0,0.00019178,2]
[357947748,1744609839173,-518.0698189,0.00019178,2]
[357947749,1744609839182,-10815.2,0.00019178,2]
[357947750,1744609839191,-533.08497582,0.00019178,2]
[357947751,1744609839200,-616.05321163,0.00019178,2]
[357947752,1744609839210,-500.0,0.00019178,2]
[357947753,1744609839219,-641.93,0.00019178,2]
[357947754,1744609839228,-500.0,0.00019178,2]
[357947755,1744609839237,-500.0,0.00019178,2]
[357947756,1744609839247,-500.0,0.00019178,2]
[357947757,1744609839256,-536.83544645,0.00019178,2]
[357947758,1744609839265,-502.24707146,0.00019178,2]
[357947759,1744609839275,-500.0,0.00019178,2]
[357947760,1744609839284,-509.46518665,0.00019178,2]
[357947761,1744609839293,-500.0,0.00019178,2]
[357947762,1744609839302,-500.0,0.00019178,2]
[357947763,1744609839311,-500.0,0.00019178,2]
[357947764,1744609839321,-150.0,0.000192,2]
[357947765,1744609839330,-566.04,0.000192,2]
[357947766,1744609839339,-150.0,0.000192,2]
[357947767,1744609839348,-150.0,0.000192,2]
[357947768,1744609839357,-150.0,0.000192,2]
[357947769,1744609839366,-833.66416215,0.00019242,2]
[357947770,1744609839376,-502.33840684,0.00019261,2]
[357947771,1744609839386,-1068.71904215,0.00019261,2]
[357947772,1744609839395,-150.0,0.00019278,2]
[357947773,1744609839404,-9999.99,0.00019339,2]
[357947774,1744609839414,-150.99,0.00019339,2]
[357947775,1744609839425,-2961.62,0.00019339,2]
[357947776,1744609839434,-992.28,0.00019339,2]
[357947777,1744609839444,-500.0,0.00019351,2]
[357947778,1744609839454,-502.33840684,0.00019352,2]
[357947779,1744609839463,-1068.71904215,0.00019352,2]
[357947780,1744609839473,-500.0,0.00019359,2]
[357947781,1744609839482,-600.0,0.0001936,2]
[357947782,1744609839492,-500.0,0.0001936,2]
[357947783,1744609839502,-833.66416215,0.00019407,2]
[357947784,1744609839512,-502.33840684,0.00019443,2]
[357947785,1744609839522,-1068.71904215,0.00019443,2]
[357947786,1744609839531,-501.00720566,0.00019452,2]
[357947787,1744609839541,-500.0,0.00019452,2]
[357947788,1744609839551,-500.0,0.00019452,2]
[357947789,1744609839560,-500.0,0.00019452,2]
[357947790,1744609839570,-606.06115766,0.00019452,2]
[357947791,1744609839580,-500.0,0.00019452,2]
[357947792,1744609839590,-500.0,0.00019452,2]
[357947793,1744609839599,-500.0,0.00019452,2]
[357947794,1744609839608,-500.0,0.00019452,2]
[357947795,1744609839618,-500.0,0.00019452,2]
[357947796,1744609839629,-500.0,0.00019452,2]
[357947797,1744609839639,-500.0,0.00019452,2]
[357947798,1744609839649,-500.0,0.00019452,2]
[357947799,1744609839660,-500.0,0.00019452,2]
[357947800,1744609839669,-500.0,0.00019452,2]
[357947801,1744609839679,-500.0,0.00019452,2]
[357947802,1744609839688,-500.0,0.00019452,2]
[357947803,1744609839698,-500.0,0.00019452,2]
[357947804,1744609839707,-618.5915729,0.00019452,2]
[357947805,1744609839716,-500.0,0.00019452,2]
[357947806,1744609839725,-500.0,0.00019452,2]
[357947807,1744609839735,-500.0,0.00019452,2]
[357947808,1744609839745,-500.0,0.00019452,2]
[357947809,1744609839754,-500.0,0.00019452,2]
[357947810,1744609839764,-522.69468267,0.00019452,2]
[357947811,1744609839773,-206.24658303,0.00019452,2]
[357947812,1744609839783,-500.0,0.00019452,2]
[357947813,1744609839792,-500.0,0.00019452,2]
[357947814,1744609839802,-500.0,0.00019452,2]
[357947815,1744609839812,-500.0,0.00019452,2]
[357947816,1744609839821,-500.0,0.00019452,2]
[357947817,1744609839831,-500.0,0.00019452,2]
[357947818,1744609839841,-527.97,0.00019452,2]
[357947819,1744609839853,-500.0,0.00019452,2]
[357947820,1744609839863,-500.0,0.00019452,2]
[357947821,1744609839872,-500.0,0.00019452,2]
[357947822,1744609839886,-500.0,0.00019452,2]
[357947823,1744609839896,-409.76043035,0.00019452,2]
[357947824,1744609839906,-500.0,0.00019452,2]
[357947825,1744609839916,-500.0,0.00019452,2]
[357947826,1744609839927,-184.80903184,0.00019452,2]
[357947827,1744609839936,-500.0,0.00019452,2]
[357947828,1744609839946,-500.0,0.00019452,2]
[357947829,1744609839956,-500.0,0.00019452,2]
[357947830,1744609839966,-500.0,0.00019452,2]
[357947831,1744609839975,-500.0,0.00019452,2]
[357947832,1744609839985,-500.0,0.00019452,2]
[357947833,1744609839995,-210.78150598,0.00019452,2]
[357947835,1744609840005,-500.0,0.00019452,2]
[357947837,1744609840015,-500.0,0.00019452,2]
[357947839,1744609840025,-500.0,0.00019452,2]
[357947841,1744609840035,-500.0,0.00019452,2]
[357947843,1744609840045,-500.0,0.00019452,2]
[357947845,1744609840055,-500.0,0.00019452,2]
[357947847,1744609840065,-500.0,0.00019452,2]
[357947849,1744609840075,-500.0,0.00019452,2]
[357947852,1744609840085,-500.0,0.00019452,2]
[357947854,1744609840095,-500.0,0.00019452,2]
[357947856,1744609840105,-500.0,0.00019452,2]
[357947858,1744609840115,-500.0,0.00019452,2]
[357947860,1744609840125,-500.0,0.00019452,2]
[357947862,1744609840135,-500.0,0.00019452,2]
[357947864,1744609840145,-500.0,0.00019452,2]
[357947866,1744609840154,-500.0,0.00019452,2]
[357947868,1744609840164,-500.0,0.00019452,2]
[357947870,1744609840174,-500.0,0.00019452,2]
[357947872,1744609840184,-500.0,0.00019452,2]
[357947874,1744609840194,-500.0,0.00019452,2]
[357947876,1744609840204,-500.0,0.00019452,2]
[357947878,1744609840214,-500.0,0.00019452,2]
[357947880,1744609840224,-500.0,0.00019452,2]
[357947882,1744609840234,-585.4,0.00019452,2]
[357947884,1744609840244,-500.0,0.00019452,2]
[357947886,1744609840253,-500.0,0.00019452,2]
[357947888,1744609840263,-500.0,0.00019452,2]
[357947890,1744609840274,-500.0,0.00019452,2]
[357947892,1744609840284,-593.82,0.00019452,2]
[357947893,1744609840294,-500.0,0.00019452,2]
[357947894,1744609840304,-500.0,0.00019452,2]
[357947895,1744609840314,-500.0,0.00019452,2]
[357947896,1744609840324,-500.0,0.00019452,2]
[357947897,1744609840334,-500.0,0.00019452,2]
[357947899,1744609840344,-500.0,0.00019452,2]
[357947901,1744609840354,-641.58,0.00019452,2]
[357947903,1744609840364,-500.0,0.00019452,2]
[357947905,1744609840374,-500.0,0.00019452,2]
[357947907,1744609840385,-500.0,0.00019452,2]
[357947909,1744609840395,-500.0,0.00019452,2]
[357947911,1744609840405,-288.84658004,0.00019452,2]
[357947913,1744609840415,-500.0,0.00019452,2]
[357947915,1744609840425,-533.17483701,0.00019452,2]
[357947917,1744609840435,-500.0,0.00019452,2]
[357947919,1744609840444,-500.0,0.00019452,2]
[357947921,1744609840454,-500.0,0.00019452,2]
[357947923,1744609840464,-500.0,0.00019452,2]
[357947925,1744609840474,-500.0,0.00019452,2]
[357947927,1744609840484,-635.22,0.00019452,2]
[357947929,1744609840494,-545.75,0.00019452,2]
[357947931,1744609840504,-500.0,0.00019452,2]
[357947933,1744609840514,-339.69,0.00019452,2]
[357947935,1744609840524,-500.0,0.00019452,2]
[357947937,1744609840535,-500.0,0.00019452,2]
[357947939,1744609840545,-500.0,0.00019452,2]
[357947941,1744609840555,-500.0,0.00019452,2]
[357947943,1744609840565,-500.0,0.00019452,2]